[Event "Late-Titled-Tuesday-Blitz-January-16-2024"]
[Site "Chess.com"]
[Date "2024.01.16"]
[Round "10"]
[White "vidavi"]
[Black "NovakRatko"]
[Result "0-1"]
[WhiteElo "2490"]
[BlackElo "2346"]
[TimeControl "180+1"]
[EndTime "15:56:29 PST"]
[Termination "NovakRatko won by resignation"]

1. Nf3 {[%clk 0:02:50.6]} 1... d5 {[%clk 0:02:59.7]} 2. d4 {[%clk 0:02:51]} 2...
c5 {[%clk 0:02:59.7]} 3. dxc5 {[%clk 0:02:49.2]} 3... Nc6 {[%clk 0:02:59.5]} 4.
e3 {[%clk 0:02:47.3]} 4... e6 {[%clk 0:02:58]} 5. c4 {[%clk 0:02:47.7]} 5...
Bxc5 {[%clk 0:02:57.8]} 6. cxd5 {[%clk 0:02:47.6]} 6... exd5 {[%clk 0:02:58.7]}
7. Nc3 {[%clk 0:02:47.3]} 7... Nf6 {[%clk 0:02:58.6]} 8. Be2 {[%clk 0:02:43.3]}
8... O-O {[%clk 0:02:58.4]} 9. O-O {[%clk 0:02:43.9]} 9... a6 {[%clk 0:02:51.6]}
10. b3 {[%clk 0:02:42.7]} 10... Bg4 {[%clk 0:02:50]} 11. Bb2 {[%clk 0:02:40.5]}
11... Ba7 {[%clk 0:02:44.5]} 12. Rc1 {[%clk 0:02:35.2]} 12... Re8 {[%clk
0:02:37.3]} 13. Nd4 {[%clk 0:02:26.5]} 13... Nxd4 {[%clk 0:02:29.6]} 14. Bxg4
{[%clk 0:02:24.5]} 14... Nxg4 {[%clk 0:02:21.3]} 15. Qxg4 {[%clk 0:02:23.9]}
15... Ne6 {[%clk 0:02:16.9]} 16. Rfd1 {[%clk 0:02:23.6]} 16... d4 {[%clk
0:02:10]} 17. Ne2 {[%clk 0:02:13.5]} 17... Qa5 {[%clk 0:02:04.5]} 18. Nxd4
{[%clk 0:01:58.3]} 18... Bxd4 {[%clk 0:01:45.5]} 19. Bxd4 {[%clk 0:01:50.1]}
19... Nxd4 {[%clk 0:01:44.6]} 20. Rxd4 {[%clk 0:01:47]} 20... Qxa2 {[%clk
0:01:44.7]} 21. b4 {[%clk 0:01:44.4]} 21... Rad8 {[%clk 0:01:35.4]} 22. Rxd8
{[%clk 0:01:35.4]} 22... Rxd8 {[%clk 0:01:34.5]} 23. Qd7 {[%clk 0:01:35]} 23...
Rf8 {[%clk 0:01:27.2]} 24. Qxb7 {[%clk 0:01:34.4]} 24... h6 {[%clk 0:01:18.1]}
25. g3 {[%clk 0:01:29]} 25... Qd2 {[%clk 0:01:17.4]} 26. Rc7 {[%clk 0:01:20.3]}
26... Qd3 {[%clk 0:01:10.8]} 27. h4 {[%clk 0:01:16.5]} 27... g6 {[%clk
0:01:05.3]} 28. h5 {[%clk 0:01:06.4]} 28... gxh5 {[%clk 0:01:01.4]} 29. Kg2
{[%clk 0:00:41.2]} 29... Kg7 {[%clk 0:00:52.7]} 30. Qf3 {[%clk 0:00:33.3]} 30...
Qb5 {[%clk 0:00:44.3]} 31. Qf4 {[%clk 0:00:28.7]} 31... Qd5+ {[%clk 0:00:41.4]}
32. e4 {[%clk 0:00:28.3]} 32... Qg5 {[%clk 0:00:39.1]} 33. Qf3 {[%clk
0:00:20.8]} 33... h4 {[%clk 0:00:36.5]} 34. Rc5 {[%clk 0:00:19.4]} 34... Qg6
{[%clk 0:00:34.1]} 35. Qc3+ {[%clk 0:00:12.4]} 35... Kh7 {[%clk 0:00:31.9]} 36.
Rc6 {[%clk 0:00:13]} 36... Qxe4+ {[%clk 0:00:31.4]} 37. Kh2 {[%clk 0:00:13.1]}
37... hxg3+ {[%clk 0:00:31.1]} 38. Qxg3 {[%clk 0:00:13.3]} 38... Qxc6 {[%clk
0:00:29.7]} 39. Qf3 {[%clk 0:00:04.2]} 39... Qxf3 {[%clk 0:00:27.4]} 0-1

[Event "Late-Titled-Tuesday-Blitz-January-16-2024"]
[Site "Chess.com"]
[Date "2024.01.16"]
[Round "10"]
[White "Practical-Play"]
[Black "aceontheturn"]
[Result "1-0"]
[WhiteElo "2553"]
[BlackElo "2747"]
[TimeControl "180+1"]
[EndTime "15:56:31 PST"]
[Termination "Practical-Play won by resignation"]

1. e4 {[%clk 0:03:00.9]} 1... e5 {[%clk 0:02:58.8]} 2. Nf3 {[%clk 0:02:59.5]}
2... Nc6 {[%clk 0:02:59.6]} 3. c3 {[%clk 0:02:58]} 3... Nf6 {[%clk 0:02:59]} 4.
d4 {[%clk 0:02:58.2]} 4... d6 {[%clk 0:02:59.2]} 5. h3 {[%clk 0:02:57.6]} 5...
Qe7 {[%clk 0:02:51.3]} 6. Bd3 {[%clk 0:02:43.6]} 6... g6 {[%clk 0:02:46.5]} 7.
d5 {[%clk 0:02:24.1]} 7... Nd8 {[%clk 0:02:46.5]} 8. Nbd2 {[%clk 0:02:21.6]}
8... Bg7 {[%clk 0:02:47.1]} 9. Nf1 {[%clk 0:02:19.8]} 9... Nh5 {[%clk
0:02:45.4]} 10. g3 {[%clk 0:02:08.5]} 10... O-O {[%clk 0:02:44.5]} 11. Bg5
{[%clk 0:02:06.7]} 11... f6 {[%clk 0:02:44.7]} 12. Be3 {[%clk 0:02:06.7]} 12...
f5 {[%clk 0:02:42.2]} 13. exf5 {[%clk 0:02:05.8]} 13... gxf5 {[%clk 0:02:42.2]}
14. Nxe5 {[%clk 0:01:56.8]} 14... Nxg3 {[%clk 0:02:38.7]} 15. Nxg3 {[%clk
0:01:52.7]} 15... dxe5 {[%clk 0:02:34.5]} 16. Qh5 {[%clk 0:01:49.5]} 16... e4
{[%clk 0:02:27.5]} 17. Bc4 {[%clk 0:01:46.9]} 17... Qf7 {[%clk 0:02:24.4]} 18.
Bc5 {[%clk 0:01:20.3]} 18... Re8 {[%clk 0:02:18.5]} 19. O-O-O {[%clk 0:01:18.2]}
19... f4 {[%clk 0:00:48.8]} 20. d6 {[%clk 0:01:11]} 20... Be6 {[%clk 0:00:49]}
21. d7 {[%clk 0:01:09.3]} 21... Rf8 {[%clk 0:00:39.9]} 22. Bxf8 {[%clk
0:00:33.7]} 22... fxg3 {[%clk 0:00:39.8]} 23. Qxf7+ {[%clk 0:00:22.5]} 23...
Kxf7 {[%clk 0:00:37.9]} 24. Bxe6+ {[%clk 0:00:21]} 24... Nxe6 {[%clk 0:00:35.9]}
25. Bxg7 {[%clk 0:00:20.6]} 25... Kxg7 {[%clk 0:00:35.9]} 26. Rhg1 {[%clk
0:00:18.8]} 26... Rd8 {[%clk 0:00:35.3]} 27. Rxg3+ {[%clk 0:00:19.1]} 27... Kf7
{[%clk 0:00:35.1]} 28. Rg4 {[%clk 0:00:19.2]} 28... Nc5 {[%clk 0:00:35.3]} 29.
Rd5 {[%clk 0:00:17]} 29... b6 {[%clk 0:00:31.3]} 30. b4 {[%clk 0:00:15.8]} 30...
Ke6 {[%clk 0:00:24.6]} 31. Rd4 {[%clk 0:00:11.4]} 31... Nd3+ {[%clk 0:00:20.6]}
32. Kd2 {[%clk 0:00:11.9]} 32... Rxd7 {[%clk 0:00:01.4]} 33. Rgxe4+ {[%clk
0:00:11.7]} 33... Ne5 {[%clk 0:00:01.9]} 34. Rxe5+ {[%clk 0:00:11.4]} 1-0

[Event "Late-Titled-Tuesday-Blitz-January-16-2024"]
[Site "Chess.com"]
[Date "2024.01.16"]
[Round "10"]
[White "Byniolus"]
[Black "HaryKane"]
[Result "1-0"]
[WhiteElo "2769"]
[BlackElo "2577"]
[TimeControl "180+1"]
[EndTime "15:56:37 PST"]
[Termination "Byniolus won by resignation"]

1. Nf3 {[%clk 0:03:00.9]} 1... Nf6 {[%clk 0:02:56.8]} 2. d4 {[%clk 0:02:58.8]}
2... g6 {[%clk 0:02:56.4]} 3. Bf4 {[%clk 0:02:59]} 3... Bg7 {[%clk 0:02:56]} 4.
e3 {[%clk 0:02:59.6]} 4... O-O {[%clk 0:02:55.9]} 5. Be2 {[%clk 0:03:00.2]} 5...
d6 {[%clk 0:02:45.7]} 6. h3 {[%clk 0:02:59.2]} 6... b6 {[%clk 0:02:42.6]} 7. O-O
{[%clk 0:02:57.1]} 7... Bb7 {[%clk 0:02:42.9]} 8. c3 {[%clk 0:02:57.2]} 8...
Nbd7 {[%clk 0:02:41.3]} 9. a4 {[%clk 0:02:57.2]} 9... Re8 {[%clk 0:02:37.6]} 10.
a5 {[%clk 0:02:56.3]} 10... a6 {[%clk 0:02:29.3]} 11. axb6 {[%clk 0:02:49.5]}
11... Nxb6 {[%clk 0:02:29.2]} 12. Bh2 {[%clk 0:02:47.5]} 12... Nfd7 {[%clk
0:02:26.4]} 13. Nbd2 {[%clk 0:02:42.8]} 13... e5 {[%clk 0:02:19.9]} 14. Qb3
{[%clk 0:02:30.9]} 14... Rb8 {[%clk 0:01:58.8]} 15. Rfd1 {[%clk 0:02:22.8]}
15... c5 {[%clk 0:01:44.8]} 16. Bf1 {[%clk 0:02:11.1]} 16... Qe7 {[%clk
0:01:32.5]} 17. dxe5 {[%clk 0:02:05.2]} 17... dxe5 {[%clk 0:01:30.1]} 18. Bxa6
{[%clk 0:01:41.5]} 18... Ba8 {[%clk 0:01:14.2]} 19. Bb5 {[%clk 0:01:37.1]} 19...
Red8 {[%clk 0:01:05.1]} 20. c4 {[%clk 0:01:25]} 20... Rbc8 {[%clk 0:00:47.7]}
21. Ra7 {[%clk 0:01:19.1]} 21... Qf6 {[%clk 0:00:37.4]} 22. e4 {[%clk
0:01:07.3]} 22... h6 {[%clk 0:00:26.2]} 23. Rda1 {[%clk 0:00:59.4]} 23... Bc6
{[%clk 0:00:23.5]} 24. Bg3 {[%clk 0:00:47.4]} 24... Qe6 {[%clk 0:00:23.2]} 25.
Bxc6 {[%clk 0:00:40.2]} 25... Qxc6 {[%clk 0:00:20.7]} 26. R1a6 {[%clk
0:00:36.7]} 26... Rb8 {[%clk 0:00:20.5]} 27. Qa3 {[%clk 0:00:25.9]} 27... Qd6
{[%clk 0:00:18.8]} 28. Qa5 {[%clk 0:00:19]} 28... Nf8 {[%clk 0:00:16.3]} 29. Nf1
{[%clk 0:00:16.3]} 29... Ne6 {[%clk 0:00:16.7]} 30. Ne3 {[%clk 0:00:17]} 30...
Nd4 {[%clk 0:00:16.7]} 31. Nxd4 {[%clk 0:00:16.6]} 31... cxd4 {[%clk 0:00:14.6]}
32. Nd5 {[%clk 0:00:15.1]} 32... Nxc4 {[%clk 0:00:14.2]} 33. Rxd6 {[%clk
0:00:14.8]} 33... Nxa5 {[%clk 0:00:14.5]} 34. Rxd8+ {[%clk 0:00:15.5]} 34...
Rxd8 {[%clk 0:00:15.1]} 35. Rxa5 {[%clk 0:00:16.2]} 35... Rb8 {[%clk 0:00:15.7]}
36. b4 {[%clk 0:00:11.7]} 36... f5 {[%clk 0:00:13.6]} 37. exf5 {[%clk
0:00:08.7]} 37... gxf5 {[%clk 0:00:14.5]} 38. Ne7+ {[%clk 0:00:09.1]} 38... Kh7
{[%clk 0:00:13.7]} 39. Nxf5 {[%clk 0:00:09.2]} 39... e4 {[%clk 0:00:14.3]} 40.
Bxb8 {[%clk 0:00:08.4]} 40... d3 {[%clk 0:00:14]} 41. Bf4 {[%clk 0:00:08.3]} 1-0

[Event "Late-Titled-Tuesday-Blitz-January-16-2024"]
[Site "Chess.com"]
[Date "2024.01.16"]
[Round "10"]
[White "KNVB"]
[Black "jmpion"]
[Result "0-1"]
[WhiteElo "2686"]
[BlackElo "2548"]
[TimeControl "180+1"]
[EndTime "15:56:42 PST"]
[Termination "jmpion won on time"]

1. d4 {[%clk 0:03:00.9]} 1... d5 {[%clk 0:02:54.7]} 2. Bf4 {[%clk 0:03:00.9]}
2... c5 {[%clk 0:02:54]} 3. e3 {[%clk 0:03:01.4]} 3... cxd4 {[%clk 0:02:54.6]}
4. exd4 {[%clk 0:03:02.3]} 4... Nc6 {[%clk 0:02:55.2]} 5. c3 {[%clk 0:03:02.9]}
5... Nf6 {[%clk 0:02:53.6]} 6. Bd3 {[%clk 0:03:02.8]} 6... g6 {[%clk 0:02:53.7]}
7. Nf3 {[%clk 0:03:02.5]} 7... Bg7 {[%clk 0:02:49.6]} 8. h3 {[%clk 0:03:01.9]}
8... O-O {[%clk 0:02:49.4]} 9. O-O {[%clk 0:03:02.5]} 9... Bf5 {[%clk 0:02:16]}
10. Bxf5 {[%clk 0:03:02.2]} 10... gxf5 {[%clk 0:02:16.9]} 11. Ne5 {[%clk
0:03:03]} 11... Nd7 {[%clk 0:02:08.9]} 12. Nd3 {[%clk 0:03:00.4]} 12... f6
{[%clk 0:01:58.8]} 13. Qh5 {[%clk 0:02:40.6]} 13... e5 {[%clk 0:01:55.7]} 14.
Qxf5 {[%clk 0:02:40.6]} 14... exf4 {[%clk 0:01:53.7]} 15. Qxd5+ {[%clk
0:02:40.7]} 15... Kh8 {[%clk 0:01:53.5]} 16. Nxf4 {[%clk 0:02:41.2]} 16... Nb6
{[%clk 0:01:44.9]} 17. Qxd8 {[%clk 0:02:24.8]} 17... Rfxd8 {[%clk 0:01:45.8]}
18. Ne6 {[%clk 0:02:17.6]} 18... Rd6 {[%clk 0:01:18.6]} 19. Nc5 {[%clk
0:02:16.2]} 19... f5 {[%clk 0:00:59.4]} 20. Nxb7 {[%clk 0:01:43.3]} 20... Rg6
{[%clk 0:00:59.4]} 21. Nd2 {[%clk 0:00:41.5]} 21... Na4 {[%clk 0:00:55.3]} 22.
Nc4 {[%clk 0:00:30.9]} 22... Rb8 {[%clk 0:00:47.4]} 23. Nbd6 {[%clk 0:00:22.4]}
23... Nxb2 {[%clk 0:00:40.8]} 24. Nxb2 {[%clk 0:00:15.5]} 24... Rxd6 {[%clk
0:00:40]} 25. Nc4 {[%clk 0:00:13.4]} 25... Rg6 {[%clk 0:00:33.2]} 26. Rab1
{[%clk 0:00:05.4]} 26... Rg8 {[%clk 0:00:23.3]} 27. Kh1 {[%clk 0:00:05.8]} 27...
Ne7 {[%clk 0:00:18.3]} 28. Rb7 {[%clk 0:00:01.3]} 28... Nd5 {[%clk 0:00:18.7]}
29. Ne3 {[%clk 0:00:01.1]} 29... Nxe3 {[%clk 0:00:15.8]} 30. fxe3 {[%clk
0:00:02]} 30... Rf6 {[%clk 0:00:16.5]} 31. Rc7 {[%clk 0:00:01.7]} 31... a6
{[%clk 0:00:15.9]} 32. Rb7 {[%clk 0:00:01.9]} 32... Re8 {[%clk 0:00:16.2]} 33.
Rf3 {[%clk 0:00:02.4]} 33... Bh6 {[%clk 0:00:14.6]} 34. Rc7 {[%clk 0:00:02.1]}
34... Bxe3 {[%clk 0:00:14.4]} 35. g3 {[%clk 0:00:02.4]} 35... f4 {[%clk
0:00:13.9]} 36. Kg2 {[%clk 0:00:02.7]} 36... Rg6 {[%clk 0:00:12.5]} 37. Kf1
{[%clk 0:00:02.5]} 37... Rxg3 {[%clk 0:00:11.8]} 38. Rxg3 {[%clk 0:00:02.7]}
38... fxg3 {[%clk 0:00:12.7]} 39. Kg2 {[%clk 0:00:03.4]} 39... Bf4 {[%clk
0:00:11.6]} 40. Kf3 {[%clk 0:00:03.2]} 40... Bxc7 {[%clk 0:00:11.2]} 0-1

[Event "Late-Titled-Tuesday-Blitz-January-16-2024"]
[Site "Chess.com"]
[Date "2024.01.16"]
[Round "10"]
[White "only_strong_moves"]
[Black "ATM622"]
[Result "1/2-1/2"]
[WhiteElo "2566"]
[BlackElo "2485"]
[TimeControl "180+1"]
[EndTime "15:56:44 PST"]
[Termination "Game drawn by repetition"]

1. d4 {[%clk 0:02:59.6]} 1... Nf6 {[%clk 0:02:59.2]} 2. Nc3 {[%clk 0:02:59.9]}
2... d5 {[%clk 0:02:58.9]} 3. Bf4 {[%clk 0:02:59.5]} 3... e6 {[%clk 0:02:58.6]}
4. Nb5 {[%clk 0:02:59.7]} 4... Na6 {[%clk 0:02:58.3]} 5. e3 {[%clk 0:02:59.8]}
5... c6 {[%clk 0:02:57.9]} 6. Nc3 {[%clk 0:03:00.3]} 6... Bb4 {[%clk 0:02:57.5]}
7. Ne2 {[%clk 0:03:00.7]} 7... O-O {[%clk 0:02:53.8]} 8. a3 {[%clk 0:03:00.2]}
8... Ba5 {[%clk 0:02:48.8]} 9. b4 {[%clk 0:02:59.5]} 9... Bc7 {[%clk 0:02:48.8]}
10. Ng3 {[%clk 0:02:59.5]} 10... Bxf4 {[%clk 0:02:44.5]} 11. exf4 {[%clk
0:03:00.4]} 11... Qd6 {[%clk 0:02:44.8]} 12. Qf3 {[%clk 0:02:56.9]} 12... Nc7
{[%clk 0:02:33.6]} 13. Bd3 {[%clk 0:02:57.1]} 13... a5 {[%clk 0:02:32.6]} 14.
bxa5 {[%clk 0:02:51.9]} 14... Rxa5 {[%clk 0:02:32.6]} 15. O-O {[%clk 0:02:52.6]}
15... Kh8 {[%clk 0:02:20.7]} 16. a4 {[%clk 0:02:50.7]} 16... Qb4 {[%clk
0:02:13.3]} 17. Nge2 {[%clk 0:02:45.3]} 17... Qd6 {[%clk 0:01:57.3]} 18. Rab1
{[%clk 0:02:43.9]} 18... c5 {[%clk 0:01:40.8]} 19. Bb5 {[%clk 0:02:19.1]} 19...
cxd4 {[%clk 0:01:26.7]} 20. Nxd4 {[%clk 0:02:18.4]} 20... e5 {[%clk 0:01:16.5]}
21. fxe5 {[%clk 0:02:17.8]} 21... Qxe5 {[%clk 0:01:16.8]} 22. Nce2 {[%clk
0:02:01.2]} 22... Ne4 {[%clk 0:01:05.5]} 23. Rfd1 {[%clk 0:01:57.6]} 23... Ne6
{[%clk 0:00:59.6]} 24. Nxe6 {[%clk 0:01:49.3]} 24... Bxe6 {[%clk 0:00:59.5]} 25.
Rb4 {[%clk 0:01:31.7]} 25... h5 {[%clk 0:00:39]} 26. Nf4 {[%clk 0:01:26.3]}
26... Bg4 {[%clk 0:00:37]} 27. Ng6+ {[%clk 0:01:23.7]} 27... fxg6 {[%clk
0:00:22.2]} 28. Qxf8+ {[%clk 0:01:24.6]} 28... Kh7 {[%clk 0:00:22.7]} 29. Re1
{[%clk 0:01:08.7]} 29... Qc3 {[%clk 0:00:20.2]} 30. Re3 {[%clk 0:01:09]} 30...
Qa1+ {[%clk 0:00:19.7]} 31. Bf1 {[%clk 0:01:07.5]} 31... Nd2 {[%clk 0:00:19.8]}
32. h3 {[%clk 0:01:03]} 32... Qxf1+ {[%clk 0:00:10.6]} 33. Kh2 {[%clk
0:01:03.4]} 33... Qc1 {[%clk 0:00:09.2]} 34. Re8 {[%clk 0:00:15.9]} 34... Nf1+
{[%clk 0:00:08.8]} 35. Kg1 {[%clk 0:00:16.6]} 35... Ng3+ {[%clk 0:00:04.1]} 36.
Kh2 {[%clk 0:00:17.5]} 36... Nf1+ {[%clk 0:00:04.2]} 37. Kg1 {[%clk 0:00:18]}
37... Ne3+ {[%clk 0:00:03.3]} 38. Kh2 {[%clk 0:00:18.9]} 38... Nf1+ {[%clk
0:00:03.4]} 1/2-1/2

[Event "Late-Titled-Tuesday-Blitz-January-16-2024"]
[Site "Chess.com"]
[Date "2024.01.16"]
[Round "10"]
[White "BozeKat"]
[Black "GAusal"]
[Result "0-1"]
[WhiteElo "2102"]
[BlackElo "2254"]
[TimeControl "180+1"]
[EndTime "15:56:44 PST"]
[Termination "GAusal won on time"]

1. d4 {[%clk 0:02:56.8]} 1... d5 {[%clk 0:02:30.8]} 2. c4 {[%clk 0:02:54.9]}
2... c6 {[%clk 0:02:25]} 3. Nf3 {[%clk 0:02:54.3]} 3... dxc4 {[%clk 0:02:23.9]}
4. a4 {[%clk 0:02:48]} 4... Nf6 {[%clk 0:02:20.2]} 5. e3 {[%clk 0:02:43.6]} 5...
Bg4 {[%clk 0:02:17.4]} 6. Bxc4 {[%clk 0:02:42.1]} 6... e6 {[%clk 0:02:14.8]} 7.
O-O {[%clk 0:02:35.1]} 7... Nbd7 {[%clk 0:02:14.8]} 8. Bd2 {[%clk 0:02:31.2]}
8... Bh5 {[%clk 0:02:10.4]} 9. b4 {[%clk 0:02:27.4]} 9... Bd6 {[%clk 0:02:07.6]}
10. Na3 {[%clk 0:02:12.2]} 10... O-O {[%clk 0:02:02.3]} 11. Be2 {[%clk 0:02:06]}
11... Nb6 {[%clk 0:01:57.7]} 12. a5 {[%clk 0:02:00.9]} 12... Nbd5 {[%clk
0:01:55]} 13. Rb1 {[%clk 0:01:59.6]} 13... Ne4 {[%clk 0:01:50.7]} 14. Nc4 {[%clk
0:01:50.6]} 14... Ndc3 {[%clk 0:01:48.9]} 15. Bxc3 {[%clk 0:01:17.9]} 15... Nxc3
{[%clk 0:01:46.7]} 16. Qb3 {[%clk 0:01:17.1]} 16... Nxb1 {[%clk 0:01:31.3]} 17.
Rxb1 {[%clk 0:01:18]} 17... Bc7 {[%clk 0:01:18.5]} 18. Ncd2 {[%clk 0:00:57.9]}
18... Qd5 {[%clk 0:01:13.3]} 19. Bc4 {[%clk 0:00:56.4]} 19... Qf5 {[%clk
0:01:11.8]} 20. Bd3 {[%clk 0:00:54.1]} 20... Qf6 {[%clk 0:01:08.7]} 21. e4
{[%clk 0:00:45.7]} 21... Bf4 {[%clk 0:01:03.9]} 22. Qc2 {[%clk 0:00:39.1]} 22...
Qd8 {[%clk 0:00:58.1]} 23. Qc4 {[%clk 0:00:26.2]} 23... Bxd2 {[%clk 0:00:49.6]}
24. Nxd2 {[%clk 0:00:25.9]} 24... b6 {[%clk 0:00:42.5]} 25. a6 {[%clk
0:00:17.9]} 25... Qd7 {[%clk 0:00:38.9]} 26. Nb3 {[%clk 0:00:15.5]} 26... Rad8
{[%clk 0:00:35.7]} 27. Re1 {[%clk 0:00:13.7]} 27... e5 {[%clk 0:00:31.1]} 28.
Rc1 {[%clk 0:00:05.5]} 28... Bg4 {[%clk 0:00:20.6]} 29. Qxc6 {[%clk 0:00:04.4]}
29... Qxc6 {[%clk 0:00:19.2]} 30. Rxc6 {[%clk 0:00:05.3]} 30... exd4 {[%clk
0:00:16.3]} 31. f3 {[%clk 0:00:05.7]} 31... Be6 {[%clk 0:00:14.9]} 32. Nd2
{[%clk 0:00:04]} 32... Rd7 {[%clk 0:00:14.6]} 33. Bb5 {[%clk 0:00:02.9]} 33...
Rfd8 {[%clk 0:00:13.4]} 34. f4 {[%clk 0:00:01.2]} 34... Re7 {[%clk 0:00:13]} 35.
f5 {[%clk 0:00:01.1]} 35... Bd7 {[%clk 0:00:13.2]} 36. Kf2 {[%clk 0:00:01.6]}
36... Bxc6 {[%clk 0:00:12.9]} 37. Bxc6 {[%clk 0:00:02.5]} 37... Rc7 {[%clk
0:00:12.6]} 38. b5 {[%clk 0:00:02.9]} 38... Rd6 {[%clk 0:00:11.1]} 0-1

[Event "Late-Titled-Tuesday-Blitz-January-16-2024"]
[Site "Chess.com"]
[Date "2024.01.16"]
[Round "10"]
[White "CamillaEffect"]
[Black "chegueps"]
[Result "0-1"]
[WhiteElo "2569"]
[BlackElo "2691"]
[TimeControl "180+1"]
[EndTime "15:56:47 PST"]
[Termination "chegueps won by checkmate"]

1. e4 {[%clk 0:03:00.9]} 1... Nf6 {[%clk 0:02:58.7]} 2. Nc3 {[%clk 0:02:59.9]}
2... d5 {[%clk 0:02:58.5]} 3. exd5 {[%clk 0:03:00.2]} 3... Nxd5 {[%clk
0:02:58.3]} 4. Bc4 {[%clk 0:03:00.6]} 4... e6 {[%clk 0:02:57]} 5. d4 {[%clk
0:02:57.8]} 5... Nxc3 {[%clk 0:02:56]} 6. bxc3 {[%clk 0:02:57.9]} 6... Be7
{[%clk 0:02:56.5]} 7. Nf3 {[%clk 0:02:58]} 7... O-O {[%clk 0:02:57.2]} 8. O-O
{[%clk 0:02:54.4]} 8... Nd7 {[%clk 0:02:57]} 9. Bf4 {[%clk 0:02:41.5]} 9... Nb6
{[%clk 0:02:45]} 10. Bd3 {[%clk 0:02:34.8]} 10... Bd7 {[%clk 0:02:41.3]} 11. Ne5
{[%clk 0:02:30]} 11... Be8 {[%clk 0:02:37.6]} 12. Qh5 {[%clk 0:02:06.6]} 12...
g6 {[%clk 0:02:33.4]} 13. Qf3 {[%clk 0:02:05.5]} 13... f6 {[%clk 0:02:22.7]} 14.
Ng4 {[%clk 0:01:43.6]} 14... Nd5 {[%clk 0:02:16.4]} 15. Bd2 {[%clk 0:01:38.5]}
15... Bc6 {[%clk 0:02:08.2]} 16. Qh3 {[%clk 0:01:20.6]} 16... f5 {[%clk
0:01:57.7]} 17. Ne5 {[%clk 0:01:13.4]} 17... Bg5 {[%clk 0:01:54.9]} 18. f4
{[%clk 0:01:05.4]} 18... Bf6 {[%clk 0:01:52.4]} 19. Nxc6 {[%clk 0:00:54.1]}
19... bxc6 {[%clk 0:01:52]} 20. Rab1 {[%clk 0:00:52.5]} 20... Rb8 {[%clk
0:01:40.4]} 21. Qf3 {[%clk 0:00:52.4]} 21... Qd6 {[%clk 0:01:38.2]} 22. Qe2
{[%clk 0:00:50.8]} 22... Kf7 {[%clk 0:01:32.4]} 23. Rb3 {[%clk 0:00:50.8]} 23...
c5 {[%clk 0:01:28.2]} 24. Rfb1 {[%clk 0:00:34.4]} 24... Rxb3 {[%clk 0:01:22]}
25. Rxb3 {[%clk 0:00:34.8]} 25... cxd4 {[%clk 0:01:22.8]} 26. cxd4 {[%clk
0:00:20.3]} 26... Bxd4+ {[%clk 0:01:21]} 27. Kh1 {[%clk 0:00:20.6]} 27... Nxf4
{[%clk 0:01:21]} 28. Bxf4 {[%clk 0:00:20.5]} 28... Qxf4 {[%clk 0:01:21.9]} 29.
Bc4 {[%clk 0:00:18.7]} 29... Be5 {[%clk 0:01:19.3]} 30. g3 {[%clk 0:00:17.9]}
30... Qd4 {[%clk 0:01:00]} 31. Re3 {[%clk 0:00:13.1]} 31... Kf6 {[%clk
0:01:00.3]} 32. c3 {[%clk 0:00:11.8]} 32... Qc5 {[%clk 0:00:57.5]} 33. Bb3
{[%clk 0:00:12.4]} 33... Rd8 {[%clk 0:00:57]} 34. Kg2 {[%clk 0:00:13]} 34... a5
{[%clk 0:00:46.2]} 35. h3 {[%clk 0:00:12.8]} 35... Rd6 {[%clk 0:00:42.4]} 36. g4
{[%clk 0:00:12.7]} 36... h6 {[%clk 0:00:43.1]} 37. Kf3 {[%clk 0:00:09.1]} 37...
Qc6+ {[%clk 0:00:37.8]} 38. Kf2 {[%clk 0:00:09.7]} 38... Bf4 {[%clk 0:00:38.2]}
39. Rf3 {[%clk 0:00:08.7]} 39... e5 {[%clk 0:00:33.9]} 40. Rd3 {[%clk
0:00:08.4]} 40... Qh1 {[%clk 0:00:28.9]} 41. Rxd6+ {[%clk 0:00:07.7]} 41... cxd6
{[%clk 0:00:29.8]} 42. Qa6 {[%clk 0:00:07.3]} 42... e4 {[%clk 0:00:22.8]} 43.
Qc4 {[%clk 0:00:05.4]} 43... e3+ {[%clk 0:00:19]} 44. Ke2 {[%clk 0:00:05.6]}
44... Qg2+ {[%clk 0:00:17.5]} 45. Ke1 {[%clk 0:00:06.3]} 45... Qf2+ {[%clk
0:00:17.7]} 46. Kd1 {[%clk 0:00:07]} 46... Qd2# {[%clk 0:00:13.7]} 0-1